bitfinex/quotes_BTCUSD_20250814
["timestamp","ask_amount","ask_price","bid_price","bid_amount"]
[1755184598602,0.08387131,118560.0,118550.0,0.42937914]
[1755184598870,0.08287131,118560.0,118550.0,0.42937914]
[1755184599056,0.00014806,118560.0,118550.0,0.42955914]
[1755184599507,0.00014806,118560.0,118550.0,0.37288518]
[1755184600373,0.00014806,118560.0,118550.0,0.37270518]
[1755184603720,0.00014806,118560.0,118550.0,0.39801718]
[1755184605041,0.08603131,118560.0,118550.0,0.39801718]
[1755184606141,0.08287131,118560.0,118550.0,0.39801718]
[1755184607098,0.08603131,118560.0,118550.0,0.19501718]
[1755184607339,0.08603131,118560.0,118550.0,0.31726518]
[1755184607746,0.25472226,118560.0,118550.0,0.31726518]
[1755184608159,0.08603131,118560.0,118550.0,0.31726518]
[1755184608513,0.25472226,118560.0,118550.0,0.31726518]
[1755184609101,0.90068128,118560.0,118550.0,0.001]
[1755184609300,0.90068128,118560.0,118550.0,0.14832]
[1755184610769,0.90068128,118560.0,118550.0,0.001]
[1755184611624,0.25472226,118560.0,118550.0,0.16970518]
[1755184612035,0.90278128,118560.0,118550.0,0.001]
[1755184614060,0.94075367,118560.0,118540.0,0.31867892]
[1755184614265,0.08851926,118550.0,118540.0,0.31867892]
[1755184614464,0.00014806,118560.0,118550.0,0.16870518]
[1755184614664,0.00014806,118560.0,118550.0,0.22759518]
[1755184614865,0.00114806,118560.0,118550.0,0.22777518]
[1755184615070,0.00114806,118560.0,118550.0,0.92837961]
[1755184615293,0.00014806,118560.0,118550.0,1.26807961]
[1755184615884,0.00014806,118560.0,118550.0,0.62212059]
[1755184616058,0.00014806,118560.0,118550.0,1.26807961]
[1755184616721,0.00014806,118560.0,118550.0,0.62212059]
[1755184616885,0.00014806,118560.0,118550.0,1.26807961]
[1755184617083,0.00014806,118560.0,118550.0,1.27007961]
[1755184617685,0.00014806,118560.0,118550.0,1.29152863]
[1755184618112,1e-08,118560.0,118550.0,1.37425188]
[1755184618313,1e-08,118560.0,118550.0,1.37762588]
[1755184619147,1e-08,118560.0,118550.0,0.63131459]
[1755184619349,1e-08,118560.0,118550.0,0.78047459]
[1755184619570,1e-08,118560.0,118550.0,0.78065459]
[1755184620493,1e-08,118560.0,118550.0,0.63131459]
[1755184620701,1e-08,118560.0,118550.0,0.78019459]
[1755184620910,0.00316001,118560.0,118550.0,0.57666918]
[1755184621113,0.00316001,118560.0,118550.0,0.38554918]
[1755184621351,0.00316001,118560.0,118550.0,0.72554918]
[1755184621608,0.00316001,118560.0,118550.0,0.71954918]
[1755184621783,0.00316001,118560.0,118550.0,0.66095918]
[1755184621990,0.00316001,118560.0,118550.0,0.66495918]
[1755184622410,0.00316001,118560.0,118550.0,0.32495918]
[1755184622613,0.25457421,118560.0,118550.0,0.32495918]
[1755184622829,0.10150205,118560.0,118550.0,0.32495918]
[1755184623047,0.08588326,118560.0,118550.0,0.32495918]
[1755184623256,0.08588326,118560.0,118550.0,0.33467675]
[1755184623257,0.10150205,118560.0,118550.0,0.33467675]
[1755184623468,0.10150205,118560.0,118550.0,0.17607918]
[1755184623469,0.270193,118560.0,118550.0,0.17607918]
[1755184623680,0.27020965,118560.0,118550.0,0.32531918]
[1755184623888,0.27020965,118560.0,118550.0,0.32162518]
[1755184624520,0.27020965,118560.0,118550.0,0.32062518]
[1755184624729,0.27020965,118560.0,118550.0,0.31762518]
[1755184624936,0.27020965,118560.0,118550.0,0.31862518]
[1755184625145,0.27020965,118560.0,118550.0,0.31962518]
[1755184625365,0.27020965,118560.0,118550.0,0.31862518]
[1755184626665,0.27023185,118560.0,118550.0,0.31862518]
[1755184626899,0.27023185,118560.0,118550.0,0.16970518]
[1755184627118,0.91830087,118560.0,118550.0,0.001]
[1755184627977,0.16870518,118550.0,118540.0,0.14868]
[1755184628179,0.91515509,118550.0,118540.0,0.14868]
[1755184628384,0.27221607,118550.0,118540.0,0.14868]
[1755184628586,0.27221607,118550.0,118540.0,0.31739941]
[1755184629277,0.27221607,118550.0,118540.0,0.14868]
[1755184629480,0.91817509,118550.0,118540.0,0.14868]
[1755184629690,0.16873042,118540.0,118520.0,0.20247077]
[1755184629896,0.16873042,118540.0,118530.0,0.31705365]
[1755184629897,0.18438806,118540.0,118530.0,0.31705365]
[1755184630294,0.18649806,118540.0,118530.0,0.31705365]
[1755184630539,0.83547708,118540.0,118530.0,0.14832]
[1755184630750,0.16873365,118530.0,118520.0,0.025319]
[1755184630959,0.83548031,118530.0,118520.0,0.173599]
[1755184631171,0.27224454,118530.0,118520.0,0.34534689]
[1755184631377,0.10351089,118530.0,118520.0,0.32002789]
[1755184631583,0.274881,118530.0,118520.0,0.31702789]
[1755184631788,0.10351089,118530.0,118520.0,0.31702789]
[1755184631998,0.10140089,118530.0,118520.0,0.31732789]
[1755184632434,0.27224454,118530.0,118520.0,0.31702789]
[1755184632848,0.27224454,118530.0,118520.0,0.14828]
[1755184633058,0.27224454,118530.0,118520.0,0.31702789]
[1755184633286,0.27224454,118530.0,118520.0,0.14928]
[1755184633505,0.91820356,118530.0,118520.0,0.32002789]
[1755184634010,0.10351089,118530.0,118520.0,0.32002789]
[1755184634301,0.10351089,118530.0,118520.0,0.36162657]
[1755184634518,0.10351089,118530.0,118520.0,0.36192657]
[1755184634750,0.10351089,118530.0,118520.0,0.36162657]
[1755184634951,0.09838089,118530.0,118520.0,0.36192657]
[1755184635689,0.01565764,118530.0,118520.0,0.41717657]
[1755184635923,0.01565764,118530.0,118520.0,1.06331559]
[1755184636160,0.00302001,118560.0,118550.0,0.16870518]
[1755184636385,0.10347816,118560.0,118550.0,0.31678518]
[1755184636606,0.09834816,118560.0,118550.0,0.31678518]
[1755184636891,0.09834816,118560.0,118550.0,0.37203518]
[1755184637132,0.01562491,118560.0,118550.0,0.37203518]
[1755184637560,0.01562491,118560.0,118550.0,0.38086273]
[1755184637772,0.01862491,118560.0,118550.0,1.02682175]
[1755184637977,0.01762491,118560.0,118550.0,0.46334716]
[1755184638192,1e-08,118560.0,118550.0,0.46334716]
[1755184638409,1e-08,118560.0,118550.0,0.46616716]
[1755184638834,1e-08,118560.0,118550.0,0.46316716]
[1755184639578,1e-08,118560.0,118550.0,0.46434716]
[1755184640001,1e-08,118560.0,118550.0,0.46316716]
[1755184640354,1e-08,118560.0,118550.0,0.46516716]
[1755184640589,1e-08,118560.0,118550.0,0.80516716]
[1755184640798,0.00297901,118570.0,118560.0,0.16869095]
[1755184640995,0.01859675,118570.0,118560.0,0.16869095]
[1755184641212,0.01859675,118570.0,118560.0,0.19961487]
[1755184642065,0.01561774,118570.0,118560.0,0.19961487]
[1755184642600,0.01561774,118570.0,118560.0,0.20161487]
[1755184643021,0.01863774,118570.0,118560.0,0.20261487]
[1755184643276,0.10136099,118570.0,118560.0,0.31933095]
[1755184644072,0.10136099,118570.0,118560.0,0.17169095]
[1755184644073,0.91863231,118570.0,118560.0,0.17169095]
[1755184644229,0.91599674,118570.0,118560.0,0.17069095]
[1755184644461,0.27003772,118570.0,118560.0,0.002]
[1755184644655,0.95986677,118570.0,118560.0,0.002]
[1755184645024,0.95986677,118570.0,118560.0,0.17069095]
[1755184645365,0.91599674,118570.0,118560.0,0.16869095]
[1755184645569,0.27003772,118570.0,118560.0,0.16869095]
[1755184645784,0.95378028,118570.0,118560.0,0.16969095]
[1755184646012,0.95378028,118570.0,118560.0,0.16869095]
[1755184646490,0.78510355,118570.0,118560.0,0.16869095]
[1755184646698,0.95377748,118570.0,118560.0,0.16869095]
[1755184647113,0.13914173,118570.0,118560.0,0.16869095]
[1755184647320,0.08574325,118570.0,118560.0,0.16869095]
[1755184647533,0.08837882,118570.0,118560.0,0.16869095]
[1755184647740,0.25705555,118570.0,118560.0,0.16869095]
[1755184647945,0.27003492,118570.0,118560.0,0.16869095]
[1755184648159,0.10135819,118570.0,118560.0,0.16869095]
[1755184648390,0.90301457,118570.0,118560.0,0.16869095]
[1755184648594,0.91599394,118570.0,118550.0,0.31610518]
[1755184648895,0.90039322,118560.0,118550.0,0.31610518]
[1755184649096,0.90039322,118560.0,118550.0,0.1474]
[1755184649291,0.90039322,118560.0,118550.0,0.14736]
[1755184649521,0.90250322,118560.0,118550.0,0.14736]
[1755184650227,0.16870518,118550.0,118540.0,0.14736]
[1755184650438,0.90251745,118550.0,118540.0,0.14736]
[1755184650648,0.25655843,118550.0,118540.0,0.31607941]
[1755184650848,0.25655843,118550.0,118540.0,0.14736]
[1755184651045,0.26550333,118550.0,118540.0,0.31607941]
[1755184651948,0.08785325,118550.0,118540.0,0.31607941]
[1755184652094,0.08785325,118550.0,118540.0,0.31643941]
[1755184652301,0.25919444,118550.0,118540.0,0.31607941]
[1755184652573,0.25655843,118550.0,118540.0,0.31607941]
[1755184652758,0.26554393,118550.0,118540.0,0.31607941]
[1755184652981,0.16871941,118540.0,118530.0,0.32430607]
[1755184653218,0.25657266,118540.0,118530.0,0.31589365]
[1755184653398,0.25657266,118540.0,118530.0,0.14716]
[1755184653399,0.90253168,118540.0,118530.0,0.14716]
[1755184653553,0.16873365,118530.0,118520.0,0.315947]
[1755184653769,0.2565869,118530.0,118520.0,0.315947]
[1755184653984,0.90254592,118530.0,118520.0,0.31594789]
[1755184654338,0.2565869,118530.0,118520.0,0.31594789]
[1755184654994,0.08785325,118530.0,118520.0,0.31594789]
[1755184655199,0.09048971,118530.0,118520.0,0.31594789]
[1755184655626,0.09048971,118530.0,118520.0,0.31694789]
[1755184656051,0.09048971,118530.0,118520.0,0.31730789]
[1755184656052,0.08272325,118530.0,118520.0,0.31730789]
[1755184656690,0.08272325,118530.0,118520.0,0.22353289]
[1755184656894,0.08272325,118530.0,118520.0,0.22376289]
[1755184657082,0.00308,118550.0,118540.0,0.16871941]
[1755184657315,0.08580325,118550.0,118540.0,0.16871941]
[1755184657748,0.08272325,118550.0,118540.0,0.16871941]
[1755184657950,0.08272325,118550.0,118540.0,0.31563941]
[1755184658084,0.08580325,118550.0,118540.0,0.31563941]
[1755184658294,0.08843926,118550.0,118540.0,0.31563941]
[1755184658495,0.25714444,118550.0,118540.0,0.31563941]
[1755184658693,0.08580325,118550.0,118540.0,0.31563941]
[1755184658872,0.08843926,118550.0,118540.0,0.31563941]
[1755184659502,0.08943926,118550.0,118540.0,0.31563941]
[1755184659704,0.09043926,118550.0,118540.0,0.31563941]
[1755184660328,0.08943926,118550.0,118540.0,0.31563941]
[1755184660530,0.08843926,118550.0,118540.0,0.31563941]
[1755184660742,0.25714444,118550.0,118540.0,0.31563941]
[1755184660969,0.08580325,118550.0,118540.0,0.31563941]
[1755184661169,0.73439828,118550.0,118540.0,0.31563941]
[1755184661369,0.73176227,118550.0,118540.0,0.31563941]
[1755184661569,0.90046745,118550.0,118540.0,0.16871941]
[1755184661798,0.16871941,118540.0,118530.0,0.3154411]
[1755184662023,0.89740168,118540.0,118530.0,0.3154411]
[1755184662214,0.90048168,118540.0,118530.0,0.14672]
[1755184662417,0.90048168,118540.0,118520.0,0.37757028]
[1755184662598,0.08580325,118530.0,118520.0,0.37757028]
[1755184664669,0.08272325,118530.0,118520.0,0.37793028]
[1755184664864,0.08272325,118530.0,118520.0,0.43340733]
[1755184665480,0.08272325,118530.0,118520.0,0.37793028]
[1755184666291,0.08272325,118530.0,118520.0,0.37893028]
[1755184670062,0.08776325,118530.0,118520.0,0.37857028]
[1755184670957,0.90509238,118530.0,118520.0,0.001]
[1755184671161,0.90245592,118530.0,118520.0,0.001]
[1755184671351,1.04805592,118530.0,118520.0,0.001]
[1755184672201,0.16874789,118520.0,118510.0,0.31432118]
[1755184672342,0.08776325,118520.0,118510.0,0.31432118]
[1755184672543,0.08272325,118520.0,118510.0,0.31468118]
[1755184672772,0.08272325,118520.0,118510.0,0.36386956]
[1755184672970,0.08272325,118520.0,118510.0,0.31468118]
[1755184673530,0.08776325,118520.0,118510.0,0.31446924]
[1755184673709,0.25651114,118520.0,118510.0,0.31446924]
[1755184673913,0.90247016,118520.0,118510.0,0.14570806]
[1755184674272,0.90247016,118520.0,118510.0,0.16891018]
[1755184674926,0.91143926,118520.0,118510.0,0.16891018]
[1755184675188,0.26548024,118520.0,118510.0,0.16891018]
[1755184675382,0.25193024,118520.0,118510.0,0.16891018]
[1755184675825,0.07421325,118520.0,118510.0,0.16891018]
[1755184676039,0.07421325,118520.0,118510.0,0.18230196]
[1755184676644,0.07684993,118520.0,118510.0,0.18230196]
[1755184676821,0.07421325,118520.0,118510.0,0.18230196]
[1755184677383,0.08577089,118520.0,118510.0,0.16927018]
[1755184677586,0.07684993,118520.0,118510.0,0.16927018]
[1755184677785,0.07684993,118520.0,118510.0,0.16891018]
[1755184678400,0.89155684,118520.0,118510.0,0.16891018]
[1755184678618,0.88892016,118520.0,118510.0,0.16891018]
[1755184678829,0.89775359,118520.0,118510.0,0.16891018]
[1755184679442,0.25179457,118520.0,118510.0,0.16891018]
[1755184679654,0.89775359,118520.0,118510.0,0.16891018]
[1755184680240,0.7290057,118520.0,118510.0,0.16891018]
[1755184680439,0.08304668,118520.0,118510.0,0.16891018]
[1755184680641,0.08568336,118520.0,118510.0,0.16891018]
[1755184681137,0.25443125,118520.0,118510.0,0.16891018]
[1755184681355,0.08304668,118520.0,118510.0,0.16891018]
[1755184681583,0.08568336,118520.0,118510.0,0.16891018]
[1755184681787,0.07421325,118520.0,118510.0,0.21805346]
[1755184682464,0.07421325,118520.0,118510.0,0.16891018]
[1755184683623,0.07421325,118520.0,118510.0,0.16927018]
[1755184683830,0.06917325,118520.0,118510.0,0.16927018]
[1755184684059,0.06917325,118520.0,118510.0,0.22556018]
[1755184684399,0.07421325,118520.0,118510.0,0.22520018]
[1755184684602,0.88892016,118520.0,118510.0,0.16891018]
[1755184685110,0.07421325,118520.0,118510.0,0.16891018]
[1755184685281,0.24559782,118520.0,118510.0,0.16891018]
[1755184685487,0.24296114,118520.0,118510.0,0.16891018]
[1755184685812,0.07421325,118520.0,118510.0,0.16891018]
[1755184686027,0.07784993,118520.0,118510.0,0.16891018]
[1755184686420,0.24659782,118520.0,118510.0,0.16891018]
[1755184686644,1.03424016,118520.0,118510.0,0.00014806]
[1755184686851,1.03524016,118520.0,118510.0,0.00014806]
[1755184687057,1.03524016,118520.0,118510.0,0.16891018]
[1755184687299,0.89092016,118520.0,118510.0,0.16891018]
[1755184687510,0.89092016,118520.0,118510.0,0.00014806]
[1755184688122,0.89092016,118520.0,118510.0,0.16891018]
[1755184688687,0.89092016,118520.0,118510.0,0.00014806]
[1755184690502,0.90655268,118520.0,118510.0,0.00014806]
[1755184690703,5.92400063,118520.0,118510.0,0.00014806]
[1755184690824,6.26400063,118520.0,118510.0,0.00014806]
[1755184693752,5.61804161,118520.0,118510.0,0.00014806]
[1755184693961,6.26400063,118520.0,118510.0,0.00014806]
[1755184695709,6.26399025,118520.0,118510.0,0.00014806]
[1755184700393,6.31040124,118520.0,118510.0,0.00014806]
[1755184701537,6.3484938,118520.0,118510.0,0.00014806]
[1755184701745,6.3474938,118520.0,118510.0,0.00014806]
[1755184701960,6.3494938,118520.0,118510.0,0.00014806]
[1755184702180,6.3748278,118520.0,118510.0,0.00014806]
[1755184702881,6.5148278,118520.0,118510.0,0.00014806]
[1755184703066,6.5208278,118520.0,118510.0,0.00014806]
[1755184703524,6.51094646,118520.0,118510.0,0.00014806]
[1755184703964,6.51394646,118520.0,118510.0,0.00014806]
[1755184705295,6.49140529,118520.0,118510.0,0.00014806]
[1755184705519,6.49928121,118520.0,118510.0,0.00014806]
[1755184707536,6.52175467,118520.0,118510.0,0.00014806]
[1755184708053,0.81476388,118480.0,118470.0,0.06766186]
[1755184708267,1.0560819,118480.0,118470.0,0.06816973]
[1755184708475,1.0560819,118480.0,118470.0,0.12136973]
[1755184709117,1.06494548,118480.0,118470.0,0.12136973]
[1755184709742,0.41898646,118480.0,118470.0,0.12136973]
[1755184709949,1.06494548,118480.0,118470.0,0.12136973]
[1755184711021,1.0874145,118480.0,118470.0,0.05370787]
[1755184711674,1.1248931,118480.0,118470.0,0.05334787]
[1755184712290,1.1258931,118480.0,118470.0,0.05334787]
[1755184712776,1.1268931,118480.0,118470.0,0.05334787]
[1755184713343,1.1268931,118480.0,118470.0,0.00014787]
[1755184713344,1.4668931,118480.0,118470.0,0.00014787]
[1755184714315,6.4668931,118480.0,118470.0,0.00014787]
[1755184714714,6.48486679,118480.0,118470.0,0.00014787]
[1755184714956,6.51020879,118480.0,118470.0,0.00014787]
[1755184715923,6.50920879,118480.0,118470.0,0.00014787]
[1755184716168,6.50820879,118480.0,118470.0,0.00014787]
[1755184716382,6.51020879,118480.0,118470.0,0.00014787]
[1755184717189,0.52626813,118470.0,118460.0,1.0]
[1755184717390,6.41849517,118470.0,118460.0,1.0]
[1755184717600,6.43646636,118470.0,118460.0,1.0]
[1755184718658,6.43746636,118470.0,118460.0,1.0]
[1755184719086,6.43743531,118470.0,118460.0,1.0]
[1755184719296,6.29447531,118470.0,118460.0,1.0]
[1755184719490,6.43743531,118470.0,118460.0,1.0]
[1755184719733,6.43843531,118470.0,118460.0,1.0]
[1755184720196,6.43844052,118470.0,118460.0,1.0]
[1755184720953,6.46344052,118470.0,118460.0,0.48225843]
[1755184721216,6.46344052,118470.0,118460.0,0.30717334]
[1755184721421,0.52631089,118440.0,118430.0,0.0004]
[1755184721624,5.77254786,118440.0,118430.0,0.0004]
[1755184721853,7.11795733,118440.0,118430.0,0.0004]
[1755184722054,5.79789986,118440.0,118430.0,0.0004]
[1755184722253,7.0898179,118440.0,118430.0,0.0004]
[1755184722497,5.79789986,118440.0,118430.0,0.0004]
[1755184722713,6.44428664,118440.0,118430.0,0.0004]
[1755184723095,7.09024566,118440.0,118430.0,0.0004]
[1755184724060,7.09424566,118440.0,118430.0,0.0004]
[1755184724423,7.09424566,118440.0,118410.0,0.0181089]
[1755184724424,1.15484941,118420.0,118410.0,0.0181089]
[1755184724601,6.41423568,118420.0,118410.0,0.0181089]
[1755184724806,6.41423568,118420.0,118410.0,0.00966977]
[1755184724807,6.4316847,118420.0,118410.0,0.00966977]
[1755184725012,5.78572568,118420.0,118410.0,0.00966977]
[1755184725226,5.78572568,118420.0,118410.0,0.00123064]
[1755184725450,6.4238154,118420.0,118410.0,0.00123064]
[1755184725656,5.63253408,118420.0,118410.0,0.05697064]
[1755184725868,0.61508506,118420.0,118410.0,0.22587529]
[1755184726069,0.76416506,118420.0,118410.0,0.05697064]
[1755184726273,0.80145022,118420.0,118410.0,0.05697064]
[1755184726529,1.44740924,118420.0,118410.0,0.05697064]
[1755184727136,1.44940924,118420.0,118410.0,0.05697064]
[1755184727340,1.44740924,118420.0,118410.0,0.05697064]
[1755184727814,0.80145022,118420.0,118410.0,0.05720064]
[1755184728031,1.44740924,118420.0,118410.0,0.05697064]
[1755184728240,1.44936924,118420.0,118410.0,0.05697064]
[1755184728467,0.82384924,118420.0,118410.0,0.05697064]
[1755184728695,1.46485826,118420.0,118410.0,0.05697064]
[1755184729376,1.46980826,118420.0,118410.0,0.05661064]
[1755184730037,1.46980826,118420.0,118410.0,0.05697064]
[1755184730239,1.46485826,118420.0,118410.0,0.05697064]
[1755184730766,0.80145022,118420.0,118410.0,0.05697064]
[1755184730962,0.29371983,118420.0,118410.0,0.22610529]
[1755184731780,0.14347983,118420.0,118410.0,0.22574529]
[1755184731988,0.02347142,118420.0,118410.0,0.22574529]
[1755184732203,0.10619467,118420.0,118410.0,0.25108829]
[1755184732407,0.30259227,118420.0,118410.0,0.25085829]
[1755184732604,1.09923129,118420.0,118410.0,0.08195364]
[1755184732832,1.09923129,118420.0,118410.0,0.05661064]
[1755184733022,1.08967464,118420.0,118410.0,0.05661064]
[1755184733260,0.44371562,118420.0,118410.0,0.05661064]
[1755184733473,0.29513473,118420.0,118410.0,0.22682968]
[1755184733687,0.14445473,118420.0,118410.0,0.22574529]
[1755184734089,0.21211659,118420.0,118410.0,0.05661064]
[1755184734247,1.14800344,118420.0,118410.0,0.05661064]
[1755184734448,1.165954,118420.0,118410.0,0.05661064]
[1755184734837,1.165954,118420.0,118410.0,0.05761064]
[1755184735024,1.165954,118420.0,118410.0,0.05661064]
[1755184735442,1.169944,118420.0,118410.0,0.05661064]
[1755184735872,1.1288547,118420.0,118410.0,0.05661064]
[1755184736102,0.48289568,118420.0,118410.0,0.05661064]
[1755184736313,0.46494512,118420.0,118410.0,0.05761064]
[1755184736735,0.46494512,118420.0,118410.0,0.05661064]
[1755184737178,1.11190414,118420.0,118410.0,0.05661064]
[1755184737384,0.16440529,118420.0,118410.0,0.22659968]
[1755184737596,0.13858703,118420.0,118410.0,0.22574529]
[1755184738051,0.31534512,118420.0,118410.0,0.05661064]
[1755184738713,0.96130414,118420.0,118410.0,0.05661064]
[1755184738971,0.9792547,118420.0,118410.0,0.05661064]
[1755184739294,0.96365098,118420.0,118410.0,0.05661064]
[1755184739512,0.33327316,118420.0,118410.0,0.05661064]
[1755184739725,0.3143226,118420.0,118410.0,0.05661064]
[1755184739930,0.3133226,118420.0,118410.0,0.05661064]
[1755184740618,0.3133226,118420.0,118410.0,0.22551529]
[1755184740827,0.14436274,118420.0,118410.0,0.22551529]
[1755184740990,0.14436274,118420.0,118410.0,0.22574529]
[1755184741344,0.31325313,118420.0,118410.0,0.22551529]
[1755184741551,0.14436274,118420.0,118410.0,0.22551529]
[1755184741756,0.1365696,118420.0,118410.0,0.22551529]
[1755184741947,0.1365696,118420.0,118410.0,0.22574529]
[1755184742353,0.1365696,118420.0,118410.0,0.25108929]
[1755184742713,0.1365696,118420.0,118410.0,0.25208929]
[1755184743154,0.16789351,118420.0,118410.0,0.25308929]
[1755184743356,0.09830954,118420.0,118410.0,0.25308929]
[1755184743563,0.01558629,118420.0,118410.0,0.25308929]
[1755184743740,0.01558629,118420.0,118410.0,1.23904831]
[1755184744135,0.0079409,118440.0,118430.0,0.16887612]
[1755184744392,0.1062691,118440.0,118430.0,0.31859612]
[1755184744608,0.1062691,118440.0,118430.0,0.37420612]
[1755184744805,0.02354585,118440.0,118430.0,0.37420612]
[1755184745389,0.02354585,118440.0,118430.0,0.22448612]
[1755184745592,0.02354585,118440.0,118430.0,0.37432612]
[1755184745774,0.02354585,118440.0,118430.0,0.37440612]
[1755184745960,0.02354585,118440.0,118430.0,0.37417612]
[1755184746368,0.02354585,118440.0,118430.0,0.37440612]
[1755184747050,0.02354585,118440.0,118430.0,0.71540612]
[1755184747235,0.01575271,118440.0,118430.0,1.36136514]
[1755184747649,0.00779314,118460.0,118450.0,0.50884761]
[1755184747853,0.00779314,118460.0,118450.0,1.35909663]
[1755184748050,0.00779314,118460.0,118450.0,1.44158106]
[1755184748475,0.00779314,118460.0,118450.0,1.52430431]
[1755184748881,0.00779314,118460.0,118450.0,1.37446431]
[1755184749114,0.00779314,118460.0,118450.0,0.87870529]
[1755184749239,0.31565301,118500.0,118480.0,0.16879256]
[1755184749441,0.08571325,118490.0,118480.0,0.31899256]
[1755184749671,0.262297,118490.0,118480.0,0.16879256]
[1755184749867,0.09350639,118490.0,118480.0,0.31951256]
[1755184750442,0.09365448,118490.0,118480.0,0.16879256]
[1755184750710,0.25465195,118490.0,118480.0,0.16879256]
[1755184750929,0.90840411,118490.0,118480.0,0.16879256]
[1755184751130,0.92635467,118490.0,118480.0,0.16879256]
[1755184751268,0.92635467,118490.0,118480.0,0.32463256]
[1755184751466,0.16880486,118480.0,118470.0,0.17723812]
[1755184751666,0.08571325,118480.0,118470.0,0.17723812]
[1755184751873,0.25451811,118480.0,118470.0,0.17723812]
[1755184752076,0.26231125,118480.0,118460.0,0.16880784]
[1755184752257,0.25453236,118470.0,118460.0,0.16880784]
[1755184752460,0.16883336,118460.0,118450.0,0.23150999]
[1755184752669,0.08571325,118460.0,118450.0,0.38710999]
[1755184753026,0.25454661,118460.0,118440.0,0.17729248]
[1755184753245,0.08571325,118450.0,118440.0,0.33281248]
[1755184753444,0.08571325,118450.0,118440.0,0.17729248]
[1755184753648,0.25456086,118450.0,118440.0,0.17729248]
[1755184753854,0.08571325,118450.0,118440.0,0.33277248]
[1755184754231,0.08272325,118450.0,118440.0,0.33277248]
[1755184754438,0.08272325,118450.0,118440.0,0.33326541]
[1755184754654,0.08272325,118450.0,118440.0,0.16541602]
[1755184755005,0.08571325,118450.0,118440.0,0.16541602]
[1755184755209,0.25456086,118450.0,118440.0,0.16541602]
[1755184755417,0.29768134,118450.0,118440.0,0.15697293]
[1755184755632,0.25456086,118450.0,118440.0,0.15697293]
[1755184755833,0.25456086,118450.0,118440.0,0.00149293]
[1755184756464,0.25456086,118450.0,118440.0,0.1703548]
[1755184756871,0.25456086,118450.0,118440.0,0.00149293]
[1755184757301,0.90051988,118450.0,118440.0,0.00149293]
[1755184757927,0.90051988,118450.0,118440.0,0.00049293]
[1755184758312,0.40972086,118450.0,118440.0,0.00049293]
[1755184758562,1.05567988,118450.0,118440.0,0.00049293]
[1755184758991,0.41072086,118450.0,118440.0,0.00049293]
[1755184759408,0.40972086,118450.0,118440.0,0.00049293]
[1755184759827,0.41072086,118450.0,118440.0,0.00049293]
[1755184760031,0.41172086,118450.0,118440.0,0.00049293]
[1755184760236,1.05767988,118450.0,118440.0,0.00049293]
[1755184760452,0.41172086,118450.0,118440.0,0.00049293]
[1755184760665,0.42049425,118450.0,118440.0,0.00049293]
[1755184760872,0.26533425,118450.0,118440.0,0.00049293]
[1755184761504,0.91129327,118450.0,118440.0,0.00049293]
[1755184762130,0.91326327,118450.0,118440.0,0.00049293]
[1755184762545,1.25326327,118450.0,118440.0,0.00049293]
[1755184762722,1.27071229,118450.0,118440.0,0.00049293]
[1755184762934,0.62475327,118450.0,118440.0,0.00049293]
[1755184763153,1.27071229,118450.0,118440.0,0.00049293]
[1755184765039,0.62475327,118450.0,118440.0,0.00049293]
[1755184765242,1.27071229,118450.0,118440.0,0.00049293]
[1755184765453,1.27071229,118450.0,118440.0,0.1693548]
[1755184765658,0.60730425,118450.0,118440.0,0.1693548]
[1755184766103,0.09845664,118450.0,118440.0,0.1693548]
[1755184766512,0.09745664,118450.0,118440.0,0.1697148]
[1755184766719,0.26794249,118450.0,118440.0,0.1693548]
[1755184766931,0.26630425,118450.0,118440.0,0.1693548]
[1755184767151,0.09745664,118450.0,118440.0,0.1693548]
[1755184767359,0.26894249,118450.0,118440.0,0.1693548]
[1755184767568,0.26630425,118450.0,118440.0,0.1693548]
[1755184768010,0.09745664,118450.0,118440.0,0.1693548]
[1755184768222,0.10009488,118450.0,118440.0,0.1693548]
[1755184768441,0.26894249,118450.0,118440.0,0.1693548]
[1755184768654,0.26630425,118450.0,118440.0,0.1693548]
[1755184769282,0.91226327,118450.0,118440.0,0.00049293]
[1755184769965,0.92971229,118450.0,118440.0,0.00049293]
[1755184770391,6.26971229,118450.0,118440.0,0.00049293]
[1755184773817,1.42343229,118450.0,118440.0,0.00049293]
[1755184774045,0.77747327,118450.0,118440.0,0.00049293]
[1755184774262,1.42343229,118450.0,118440.0,0.00049293]
[1755184776417,6.42343229,118450.0,118440.0,0.00049293]
[1755184778315,5.77747327,118450.0,118440.0,0.00049293]
[1755184778547,6.42343229,118450.0,118440.0,0.00049293]
[1755184778767,1.40598327,118450.0,118440.0,0.00049293]
[1755184779197,1.42343229,118450.0,118440.0,0.00049293]
[1755184779817,6.42343229,118450.0,118440.0,0.00049293]
[1755184780031,5.77747327,118450.0,118440.0,0.00049293]
[1755184780232,1.42343229,118450.0,118440.0,0.00049293]
[1755184783959,5.79311376,118450.0,118440.0,0.00049293]
[1755184784168,6.43907278,118450.0,118440.0,0.00049293]
[1755184784368,0.16889039,118420.0,118410.0,0.00123064]
[1755184784576,0.41100364,118420.0,118410.0,0.00123064]
[1755184785007,1.05696266,118420.0,118410.0,0.00123064]
[1755184785832,1.05796266,118420.0,118410.0,0.00123064]
[1755184787159,0.41200364,118420.0,118410.0,0.00123064]
[1755184787354,0.41300364,118420.0,118410.0,0.00123064]
[1755184787768,1.05896266,118420.0,118410.0,0.00123064]
[1755184787964,0.41300364,118420.0,118410.0,0.00123064]
[1755184788220,1.05896266,118420.0,118410.0,0.00123064]
[1755184788902,1.07641168,118420.0,118410.0,0.00123064]
[1755184789097,1.41641168,118420.0,118410.0,0.00123064]
[1755184790655,5.77045266,118420.0,118410.0,0.00123064]
[1755184791055,6.41641168,118420.0,118410.0,0.00123064]
[1755184791255,5.77045266,118420.0,118410.0,0.00123064]
[1755184791577,6.41641168,118420.0,118410.0,0.00123064]
[1755184792018,5.77045266,118420.0,118410.0,0.00123064]
[1755184792224,6.41641168,118420.0,118410.0,0.00123064]
[1755184793379,5.77045266,118420.0,118410.0,0.00123064]
[1755184793616,0.16896173,118370.0,118360.0,0.05785]
[1755184793846,0.16896173,118370.0,118360.0,0.0613]
[1755184794079,0.16896173,118370.0,118360.0,0.23136263]
[1755184794295,0.16896173,118370.0,118360.0,0.230276]
[1755184794747,0.16896173,118370.0,118360.0,0.0613]
[1755184794998,0.16896173,118370.0,118360.0,0.06084]
[1755184795229,0.16945495,118370.0,118360.0,0.232276]
[1755184795675,0.178168,118370.0,118360.0,0.232276]
[1755184796120,0.26089125,118370.0,118360.0,0.232276]
[1755184796622,0.26089125,118370.0,118360.0,0.06184]
[1755184796859,0.26089125,118370.0,118360.0,0.230816]
[1755184797310,0.26089125,118370.0,118360.0,0.232276]
[1755184797780,1.06305027,118370.0,118360.0,0.06184]
[1755184798006,1.06305027,118370.0,118360.0,0.06084]
[1755184798235,0.41709125,118370.0,118360.0,0.06084]
[1755184798461,0.26089125,118370.0,118360.0,0.06184]
[1755184799362,0.26291125,118370.0,118360.0,0.06184]